[Event "Titled Tuesday Blitz April 18 Early 2023"]
[White "Lehtosaari, Mauri"]
[Black "Tyagi, Kushan"]
[WhiteFideId "501999"]
[BlackFideId "2040069"]
[WhiteElo "2501"]
[BlackElo "2287"]
[Result "1-0"]
[Round "03"]
[TimeControl "180+2"]
[Date "2023.04.18"]
[WhiteClock "0:00:02"]
[BlackClock "0:00:04"]

1. d4 {[%clk 0:03:00]}  Nf6 {[%clk 0:02:58]} 2. Nf3 {[%clk 0:03:01]}  e6 {[%clk 0:02:54]} 3. Bg5 {[%clk 0:03:00]}  c5 {[%clk 0:02:52]} 4. e3 {[%clk 0:03:00]}  Nc6 {[%clk 0:02:52]} 5. c3 {[%clk 0:02:58]}  d5 {[%clk 0:02:50]} 6. Ne5 {[%clk 0:02:54]}  h6 {[%clk 0:02:46]} 7. Bh4 {[%clk 0:02:54]}  Be7 {[%clk 0:02:45]} 8. f4 {[%clk 0:02:51]}  Qb6 {[%clk 0:02:21]} 9. Qb3 {[%clk 0:02:46]}  Bd7 {[%clk 0:02:03]} 10. Nd2 {[%clk 0:02:37]}  g5 {[%clk 0:01:48]} 11. Bg3 {[%clk 0:02:30]}  Nxe5 {[%clk 0:01:43]} 12. fxe5 {[%clk 0:02:29]}  Ng4 {[%clk 0:01:40]} 13. Bf2 {[%clk 0:02:23]}  Qxb3 {[%clk 0:01:30]} 14. axb3 {[%clk 0:02:20]}  h5 {[%clk 0:01:26]} 15. h3 {[%clk 0:02:20]}  Nh6 {[%clk 0:01:26]} 16. Bd3 {[%clk 0:02:15]}  h4 {[%clk 0:01:17]} 17. g3 {[%clk 0:02:01]}  hxg3 {[%clk 0:01:11]} 18. Bxg3 {[%clk 0:02:01]}  Nf5 {[%clk 0:01:11]} 19. Kf2 {[%clk 0:01:41]}  a6 {[%clk 0:01:03]} 20. Rag1 {[%clk 0:01:29]}  Bb5 {[%clk 0:00:57]} 21. Bc2 {[%clk 0:01:19]}  Bc6 {[%clk 0:00:44]} 22. Nf3 {[%clk 0:01:12]}  Kd7 {[%clk 0:00:41]} 23. Ne1 {[%clk 0:01:07]}  Rh6 {[%clk 0:00:38]} 24. Kg2 {[%clk 0:01:03]}  Rah8 {[%clk 0:00:37]} 25. Bf2 {[%clk 0:01:03]}  Nh4+ {[%clk 0:00:27]} 26. Bxh4 {[%clk 0:01:00]}  Rxh4 {[%clk 0:00:28]} 27. Nf3 {[%clk 0:00:55]}  R4h5 {[%clk 0:00:27]} 28. Bd3 {[%clk 0:00:50]}  Bb5 {[%clk 0:00:24]} 29. Bxb5+ {[%clk 0:00:48]}  axb5 {[%clk 0:00:24]} 30. Ra1 {[%clk 0:00:49]}  Kc6 {[%clk 0:00:23]} 31. Kg3 {[%clk 0:00:46]}  f5 {[%clk 0:00:20]} 32. Kg2 {[%clk 0:00:41]}  c4 {[%clk 0:00:18]} 33. bxc4 {[%clk 0:00:40]}  bxc4 {[%clk 0:00:18]} 34. Rab1 {[%clk 0:00:39]}  g4 {[%clk 0:00:17]} 35. hxg4 {[%clk 0:00:15]}  Rxh1 {[%clk 0:00:18]} 36. Rxh1 {[%clk 0:00:14]}  Rxh1 {[%clk 0:00:18]} 37. Kxh1 {[%clk 0:00:15]}  fxg4 {[%clk 0:00:18]} 38. Nh2 {[%clk 0:00:09]}  g3 {[%clk 0:00:17]} 39. Ng4 {[%clk 0:00:09]}  b5 {[%clk 0:00:16]} 40. Kg2 {[%clk 0:00:09]}  b4 {[%clk 0:00:14]} 41. Kxg3 {[%clk 0:00:08]}  b3 {[%clk 0:00:13]} 42. Nf2 {[%clk 0:00:07]}  Ba3 {[%clk 0:00:13]} 43. Nd1 {[%clk 0:00:07]}  Be7 {[%clk 0:00:11]} 44. Kg4 {[%clk 0:00:07]}  Kb5 {[%clk 0:00:11]} 45. Kh5 {[%clk 0:00:06]}  Ka4 {[%clk 0:00:11]} 46. Kg6 {[%clk 0:00:05]}  Ba3 {[%clk 0:00:10]} 47. e4 {[%clk 0:00:04]}  dxe4 {[%clk 0:00:08]} 48. d5 {[%clk 0:00:04]}  e3 {[%clk 0:00:05]} 49. Nxe3 {[%clk 0:00:03]}  Bxb2 {[%clk 0:00:06]} 50. dxe6 {[%clk 0:00:03]}  Ba3 {[%clk 0:00:05]} 51. Nxc4 {[%clk 0:00:02]}  Be7 {[%clk 0:00:04]} 52. Kf7 {[%clk 0:00:02]}  Kb5 {[%clk 0:00:04]} 53. Nb2 {[%clk 0:00:02]}  Ba3 {[%clk 0:00:03]} 54. e7 {[%clk 0:00:02]}  Bxe7 {[%clk 0:00:04]} 55. Kxe7 {[%clk 0:00:02]} 1-0


[Site "https://www.chess.com"]

[Event "Titled Tuesday Blitz April 18 Early 2023"]
[White "Petukhov, Dmitry"]
[Black "Smietanska, Wiktoria"]
[WhiteFideId "4142748"]
[BlackFideId "21869359"]
[WhiteElo "2311"]
[BlackElo "1995"]
[Result "0-1"]
[Round "03"]
[TimeControl "180+2"]
[Date "2023.04.18"]
[WhiteClock "0:01:36"]
[BlackClock "0:00:55"]

1. e4 {[%clk 0:02:59]}  c5 {[%clk 0:02:58]} 2. c3 {[%clk 0:02:58]}  Nf6 {[%clk 0:02:56]} 3. e5 {[%clk 0:02:58]}  Nd5 {[%clk 0:02:57]} 4. d4 {[%clk 0:02:59]}  cxd4 {[%clk 0:02:56]} 5. Nf3 {[%clk 0:03:00]}  Nc6 {[%clk 0:02:56]} 6. Bc4 {[%clk 0:03:00]}  Nb6 {[%clk 0:02:56]} 7. Bb3 {[%clk 0:03:00]}  e6 {[%clk 0:02:49]} 8. cxd4 {[%clk 0:03:00]}  d6 {[%clk 0:02:49]} 9. Nc3 {[%clk 0:02:59]}  dxe5 {[%clk 0:02:47]} 10. dxe5 {[%clk 0:02:57]}  Qxd1+ {[%clk 0:02:45]} 11. Nxd1 {[%clk 0:02:58]}  Bb4+ {[%clk 0:02:44]} 12. Bd2 {[%clk 0:02:58]}  Bxd2+ {[%clk 0:02:43]} 13. Kxd2 {[%clk 0:02:59]}  O-O {[%clk 0:02:44]} 14. Nc3 {[%clk 0:02:58]}  Rd8+ {[%clk 0:02:43]} 15. Ke3 {[%clk 0:02:58]}  Nd7 {[%clk 0:02:22]} 16. Kf4 {[%clk 0:02:55]}  b6 {[%clk 0:02:20]} 17. Nb5 {[%clk 0:02:48]}  Nc5 {[%clk 0:02:09]} 18. Rhd1 {[%clk 0:02:41]}  Bb7 {[%clk 0:01:55]} 19. Nd6 {[%clk 0:02:36]}  Ba6 {[%clk 0:01:49]} 20. Nd4 {[%clk 0:02:11]}  Nxe5 {[%clk 0:01:12]} 21. Kxe5 {[%clk 0:02:07]}  f6+ {[%clk 0:01:08]} 22. Kf4 {[%clk 0:02:00]}  Rxd6 {[%clk 0:01:07]} 23. Nxe6 {[%clk 0:02:00]}  Nxe6+ {[%clk 0:01:04]} 24. Kf5 {[%clk 0:01:51]}  Bd3+ {[%clk 0:00:58]} 25. Kg4 {[%clk 0:01:37]}  Be2+ {[%clk 0:00:57]} 26. Kh4 {[%clk 0:01:36]}  Bxd1 {[%clk 0:00:55]} 0-1


[Site "https://www.chess.com"]

[Event "Titled Tuesday Blitz April 18 Early 2023"]
[White "Vafin, Ayrat"]
[Black "babbilator"]
[WhiteFideId "4146530"]
[WhiteElo "2317"]
[BlackElo "2252"]
[Result "0-1"]
[Round "03"]
[TimeControl "180+2"]
[Date "2023.04.18"]
[WhiteClock "0:00:15"]
[BlackClock "0:00:05"]

1. d4 {[%clk 0:03:00]}  Nf6 {[%clk 0:02:56]} 2. Nf3 {[%clk 0:03:01]}  e6 {[%clk 0:02:54]} 3. Bg5 {[%clk 0:03:01]}  c5 {[%clk 0:02:53]} 4. e3 {[%clk 0:03:01]}  b6 {[%clk 0:02:54]} 5. Bd3 {[%clk 0:02:58]}  Bb7 {[%clk 0:02:54]} 6. Nbd2 {[%clk 0:02:58]}  Be7 {[%clk 0:02:54]} 7. c3 {[%clk 0:02:57]}  cxd4 {[%clk 0:02:52]} 8. exd4 {[%clk 0:02:57]}  d6 {[%clk 0:02:52]} 9. O-O {[%clk 0:02:56]}  O-O {[%clk 0:02:52]} 10. Qe2 {[%clk 0:02:55]}  Nbd7 {[%clk 0:02:51]} 11. a4 {[%clk 0:02:53]}  a6 {[%clk 0:02:50]} 12. Rfe1 {[%clk 0:02:52]}  Qc7 {[%clk 0:02:50]} 13. Rad1 {[%clk 0:02:51]}  Rfe8 {[%clk 0:02:51]} 14. h4 {[%clk 0:02:46]}  Qc6 {[%clk 0:02:38]} 15. a5 {[%clk 0:02:40]}  b5 {[%clk 0:02:34]} 16. Bb1 {[%clk 0:02:26]}  Qc7 {[%clk 0:02:29]} 17. Nb3 {[%clk 0:02:21]}  Bd5 {[%clk 0:02:26]} 18. Bc2 {[%clk 0:02:17]}  Nf8 {[%clk 0:01:59]} 19. Bxf6 {[%clk 0:02:10]}  Bxf6 {[%clk 0:01:59]} 20. Nfd2 {[%clk 0:02:08]}  Bxh4 {[%clk 0:01:53]} 21. Be4 {[%clk 0:02:08]}  Bxe4 {[%clk 0:01:48]} 22. Qxe4 {[%clk 0:02:08]}  Bf6 {[%clk 0:01:35]} 23. Nf3 {[%clk 0:02:07]}  g6 {[%clk 0:01:34]} 24. g4 {[%clk 0:02:06]}  Bg7 {[%clk 0:01:27]} 25. Kg2 {[%clk 0:02:06]}  f5 {[%clk 0:01:23]} 26. gxf5 {[%clk 0:02:06]}  gxf5 {[%clk 0:01:24]} 27. Qh4 {[%clk 0:02:05]}  Ng6 {[%clk 0:01:22]} 28. Qh2 {[%clk 0:02:00]}  e5 {[%clk 0:01:14]} 29. d5 {[%clk 0:01:52]}  Bf6 {[%clk 0:01:12]} 30. Rg1 {[%clk 0:01:40]}  Re7 {[%clk 0:01:11]} 31. Kh1 {[%clk 0:01:37]}  Rg7 {[%clk 0:01:10]} 32. Ng5 {[%clk 0:01:34]}  Bxg5 {[%clk 0:01:06]} 33. Rxg5 {[%clk 0:01:29]}  Qc4 {[%clk 0:00:50]} 34. Nc1 {[%clk 0:01:09]}  Qe4+ {[%clk 0:00:44]} 35. Kg1 {[%clk 0:01:09]}  Raa7 {[%clk 0:00:40]} 36. Kf1 {[%clk 0:00:39]}  Nf4 {[%clk 0:00:38]} 37. Qh4 {[%clk 0:00:38]}  Rxg5 {[%clk 0:00:22]} 38. Qxg5+ {[%clk 0:00:38]}  Rg7 {[%clk 0:00:18]} 39. Qd8+ {[%clk 0:00:38]}  Kf7 {[%clk 0:00:19]} 40. Qd7+ {[%clk 0:00:35]}  Kg6 {[%clk 0:00:16]} 41. Qe8+ {[%clk 0:00:21]}  Kh6 {[%clk 0:00:15]} 42. Qe6+ {[%clk 0:00:16]}  Nxe6 {[%clk 0:00:15]} 43. dxe6 {[%clk 0:00:17]}  Re7 {[%clk 0:00:11]} 44. Ne2 {[%clk 0:00:16]}  Rxe6 {[%clk 0:00:09]} 45. Ng3 {[%clk 0:00:17]}  Qc4+ {[%clk 0:00:08]} 46. Kg2 {[%clk 0:00:17]}  Kg6 {[%clk 0:00:09]} 47. Rh1 {[%clk 0:00:17]}  Qd5+ {[%clk 0:00:09]} 48. Kg1 {[%clk 0:00:17]}  f4 {[%clk 0:00:07]} 49. Ne2 {[%clk 0:00:17]}  Qf3 {[%clk 0:00:07]} 50. Nc1 {[%clk 0:00:17]}  Kg7 {[%clk 0:00:06]} 51. Kf1 {[%clk 0:00:15]}  Rg6 {[%clk 0:00:06]} 52. Rg1 {[%clk 0:00:15]}  Qd1# {[%clk 0:00:05]} 0-1


[Site "https://www.chess.com"]

[Event "Titled Tuesday Blitz April 18 Early 2023"]
[White "Wisniacki, Flavio"]
[Black "Kalajzic, Ivan"]
[WhiteFideId "119229"]
[BlackFideId "14506378"]
[WhiteElo "2150"]
[BlackElo "2203"]
[Result "0-1"]
[Round "03"]
[TimeControl "180+2"]
[Date "2023.04.18"]
[WhiteClock "0:00:07"]
[BlackClock "0:00:51"]

1. Nf3 {[%clk 0:02:56]}  Nc6 {[%clk 0:02:59]} 2. c4 {[%clk 0:02:55]}  e5 {[%clk 0:02:59]} 3. Nc3 {[%clk 0:02:55]}  Bb4 {[%clk 0:02:58]} 4. Qc2 {[%clk 0:02:50]}  d6 {[%clk 0:02:51]} 5. e3 {[%clk 0:02:48]}  Nge7 {[%clk 0:02:49]} 6. Be2 {[%clk 0:02:46]}  Bf5 {[%clk 0:02:48]} 7. d3 {[%clk 0:02:44]}  O-O {[%clk 0:02:44]} 8. O-O {[%clk 0:02:43]}  Bxc3 {[%clk 0:02:40]} 9. Qxc3 {[%clk 0:02:43]}  d5 {[%clk 0:02:41]} 10. cxd5 {[%clk 0:02:38]}  Nxd5 {[%clk 0:02:39]} 11. Qb3 {[%clk 0:02:38]}  Nb6 {[%clk 0:02:37]} 12. a3 {[%clk 0:02:32]}  e4 {[%clk 0:02:28]} 13. dxe4 {[%clk 0:02:29]}  Bxe4 {[%clk 0:02:29]} 14. Rd1 {[%clk 0:02:28]}  Qf6 {[%clk 0:02:28]} 15. Bd2 {[%clk 0:02:28]}  Qg6 {[%clk 0:02:20]} 16. Bc3 {[%clk 0:02:24]}  Bc2 {[%clk 0:02:19]} 17. Qb5 {[%clk 0:02:14]}  Bxd1 {[%clk 0:02:16]} 18. Rxd1 {[%clk 0:02:14]}  Rfd8 {[%clk 0:02:08]} 19. Rc1 {[%clk 0:02:14]}  a6 {[%clk 0:02:05]} 20. Qb3 {[%clk 0:02:11]}  Qe6 {[%clk 0:02:02]} 21. Qxe6 {[%clk 0:02:02]}  fxe6 {[%clk 0:02:03]} 22. Ne5 {[%clk 0:01:58]}  Nxe5 {[%clk 0:02:01]} 23. Bxe5 {[%clk 0:01:58]}  Rd7 {[%clk 0:01:55]} 24. Rxc7 {[%clk 0:01:49]}  Rxc7 {[%clk 0:01:53]} 25. Bxc7 {[%clk 0:01:50]}  Nd5 {[%clk 0:01:54]} 26. Be5 {[%clk 0:01:49]}  Rc8 {[%clk 0:01:53]} 27. e4 {[%clk 0:01:06]}  Rc1+ {[%clk 0:01:49]} 28. Bf1 {[%clk 0:01:06]}  Nb6 {[%clk 0:01:45]} 29. Bc3 {[%clk 0:00:51]}  Na4 {[%clk 0:01:39]} 30. Be5 {[%clk 0:00:49]}  Rb1 {[%clk 0:01:20]} 31. b4 {[%clk 0:00:41]}  Nb2 {[%clk 0:01:17]} 32. g3 {[%clk 0:00:31]}  Nc4 {[%clk 0:01:16]} 33. Bf4 {[%clk 0:00:17]}  Nxa3 {[%clk 0:01:16]} 34. Kg2 {[%clk 0:00:16]}  Rxb4 {[%clk 0:01:11]} 35. Bd6 {[%clk 0:00:15]}  Ra4 {[%clk 0:01:11]} 36. Be2 {[%clk 0:00:14]}  Nb5 {[%clk 0:01:09]} 37. Bc5 {[%clk 0:00:13]}  Rxe4 {[%clk 0:01:06]} 38. Bf3 {[%clk 0:00:13]}  Rc4 {[%clk 0:01:03]} 39. Bb6 {[%clk 0:00:13]}  Nd6 {[%clk 0:01:00]} 40. Bd8 {[%clk 0:00:11]}  Kf7 {[%clk 0:00:57]} 41. Bg5 {[%clk 0:00:11]}  a5 {[%clk 0:00:52]} 42. Bf4 {[%clk 0:00:10]}  Ke7 {[%clk 0:00:52]} 43. Bg5+ {[%clk 0:00:09]}  Kd7 {[%clk 0:00:52]} 44. Bd2 {[%clk 0:00:07]}  a4 {[%clk 0:00:51]} 0-1


[Site "https://www.chess.com"]

[Event "Titled Tuesday Blitz April 18 Early 2023"]
[White "Kohler, Aran"]
[Black "Erzhanov, Arman"]
[WhiteFideId "1002856"]
[BlackFideId "4138821"]
[WhiteElo "2245"]
[BlackElo "2138"]
[Result "1/2-1/2"]
[Round "03"]
[TimeControl "180+2"]
[Date "2023.04.18"]
[WhiteClock "0:00:11"]
[BlackClock "0:00:11"]

1. d4 {[%clk 0:02:55]}  d6 {[%clk 0:03:00]} 2. Nf3 {[%clk 0:02:55]}  g6 {[%clk 0:02:59]} 3. Bg5 {[%clk 0:02:54]}  Bg7 {[%clk 0:03:00]} 4. c3 {[%clk 0:02:53]}  h6 {[%clk 0:03:00]} 5. Bh4 {[%clk 0:02:53]}  Nf6 {[%clk 0:03:00]} 6. Nbd2 {[%clk 0:02:48]}  O-O {[%clk 0:03:00]} 7. e3 {[%clk 0:02:45]}  c6 {[%clk 0:02:59]} 8. Bd3 {[%clk 0:02:42]}  Nbd7 {[%clk 0:02:59]} 9. Qb3 {[%clk 0:02:39]}  e5 {[%clk 0:02:58]} 10. Bxg6 {[%clk 0:02:37]}  exd4 {[%clk 0:02:54]} 11. cxd4 {[%clk 0:02:36]}  d5 {[%clk 0:02:54]} 12. Bb1 {[%clk 0:02:29]}  Re8 {[%clk 0:02:52]} 13. O-O {[%clk 0:02:25]}  Nf8 {[%clk 0:02:52]} 14. Ne5 {[%clk 0:02:23]}  N8d7 {[%clk 0:02:35]} 15. f4 {[%clk 0:02:23]}  Qb6 {[%clk 0:02:32]} 16. Qc2 {[%clk 0:02:21]}  Nf8 {[%clk 0:02:21]} 17. h3 {[%clk 0:01:58]}  Be6 {[%clk 0:02:15]} 18. a3 {[%clk 0:01:53]}  a5 {[%clk 0:02:13]} 19. a4 {[%clk 0:01:53]}  Rac8 {[%clk 0:02:13]} 20. Nb3 {[%clk 0:01:49]}  Ne4 {[%clk 0:02:12]} 21. Nc5 {[%clk 0:01:37]}  Nxc5 {[%clk 0:02:06]} 22. dxc5 {[%clk 0:01:36]}  Qc7 {[%clk 0:01:59]} 23. Nf3 {[%clk 0:01:31]}  f5 {[%clk 0:01:55]} 24. Nd4 {[%clk 0:01:29]}  Ng6 {[%clk 0:01:54]} 25. Bf2 {[%clk 0:01:25]}  Bxd4 {[%clk 0:01:50]} 26. exd4 {[%clk 0:01:24]}  Qxf4 {[%clk 0:01:46]} 27. Ra3 {[%clk 0:01:19]}  Rf8 {[%clk 0:01:36]} 28. Rf3 {[%clk 0:01:09]}  Qg5 {[%clk 0:01:35]} 29. Be3 {[%clk 0:01:03]}  Qh5 {[%clk 0:01:28]} 30. Bf4 {[%clk 0:00:55]}  Rf7 {[%clk 0:01:21]} 31. Qf2 {[%clk 0:00:53]}  Nxf4 {[%clk 0:01:11]} 32. Rxf4 {[%clk 0:00:53]}  Rcf8 {[%clk 0:01:12]} 33. Kh2 {[%clk 0:00:49]}  Kh8 {[%clk 0:01:11]} 34. Qe3 {[%clk 0:00:47]}  Bc8 {[%clk 0:01:07]} 35. R1f3 {[%clk 0:00:43]}  Qg5 {[%clk 0:01:06]} 36. Qe1 {[%clk 0:00:41]}  Re7 {[%clk 0:01:06]} 37. Qxa5 {[%clk 0:00:36]}  Re2 {[%clk 0:01:05]} 38. Rf2 {[%clk 0:00:36]}  Rxf2 {[%clk 0:01:03]} 39. Rxf2 {[%clk 0:00:36]}  Qe3 {[%clk 0:01:04]} 40. Qd2 {[%clk 0:00:34]}  Qxd2 {[%clk 0:01:01]} 41. Rxd2 {[%clk 0:00:33]}  Re8 {[%clk 0:00:58]} 42. b4 {[%clk 0:00:32]}  Kg7 {[%clk 0:00:58]} 43. Rf2 {[%clk 0:00:31]}  Re3 {[%clk 0:00:35]} 44. Bxf5 {[%clk 0:00:25]}  Bxf5 {[%clk 0:00:35]} 45. Rxf5 {[%clk 0:00:26]}  Ra3 {[%clk 0:00:23]} 46. b5 {[%clk 0:00:25]}  Rxa4 {[%clk 0:00:23]} 47. bxc6 {[%clk 0:00:20]}  bxc6 {[%clk 0:00:23]} 48. Re5 {[%clk 0:00:20]}  Rxd4 {[%clk 0:00:23]} 49. Re6 {[%clk 0:00:19]}  Rc4 {[%clk 0:00:22]} 50. Rxc6 {[%clk 0:00:20]}  d4 {[%clk 0:00:23]} 51. Kg3 {[%clk 0:00:19]}  d3 {[%clk 0:00:16]} 52. Kf3 {[%clk 0:00:18]}  Rc2 {[%clk 0:00:16]} 53. Ke3 {[%clk 0:00:17]}  Rxg2 {[%clk 0:00:16]} 54. Kxd3 {[%clk 0:00:17]}  Rg3+ {[%clk 0:00:16]} 55. Ke4 {[%clk 0:00:16]}  Rxh3 {[%clk 0:00:17]} 56. Kf5 {[%clk 0:00:15]}  Rf3+ {[%clk 0:00:15]} 57. Kg4 {[%clk 0:00:14]}  Rc3 {[%clk 0:00:14]} 58. Rc7+ {[%clk 0:00:14]}  Kg6 {[%clk 0:00:14]} 59. Rc6+ {[%clk 0:00:13]}  Kg7 {[%clk 0:00:14]} 60. Kh5 {[%clk 0:00:13]}  Rc1 {[%clk 0:00:12]} 61. Rc7+ {[%clk 0:00:12]}  Kf6 {[%clk 0:00:12]} 62. Rc6+ {[%clk 0:00:12]}  Ke5 {[%clk 0:00:12]} 63. Kxh6 {[%clk 0:00:11]}  Kd5 {[%clk 0:00:11]} 64. Rc8 {[%clk 0:00:11]}  Rxc5 {[%clk 0:00:11]} 65. Rxc5+ {[%clk 0:00:11]}  Kxc5 {[%clk 0:00:11]} 1/2-1/2


[Site "https://www.chess.com"]

[Event "Titled Tuesday Blitz April 18 Early 2023"]
[White "Krasteva, Beloslava"]
[Black "Sai Han Thiha"]
[WhiteFideId "2922029"]
[BlackFideId "13012290"]
[WhiteElo "2187"]
[BlackElo "1954"]
[Result "0-1"]
[Round "03"]
[TimeControl "180+2"]
[Date "2023.04.18"]
[WhiteClock "0:00:01"]
[BlackClock "0:00:06"]

1. d4 {[%clk 0:03:00]}  Nf6 {[%clk 0:03:00]} 2. Nf3 {[%clk 0:03:00]}  e6 {[%clk 0:03:00]} 3. Bf4 {[%clk 0:02:57]}  c5 {[%clk 0:03:00]} 4. e3 {[%clk 0:02:57]}  Be7 {[%clk 0:02:41]} 5. Bd3 {[%clk 0:02:48]}  cxd4 {[%clk 0:02:22]} 6. exd4 {[%clk 0:02:46]}  b6 {[%clk 0:02:22]} 7. O-O {[%clk 0:02:36]}  Bb7 {[%clk 0:02:22]} 8. Nbd2 {[%clk 0:02:28]}  O-O {[%clk 0:02:22]} 9. c3 {[%clk 0:02:26]}  d6 {[%clk 0:02:19]} 10. Re1 {[%clk 0:02:18]}  Nh5 {[%clk 0:02:16]} 11. Be3 {[%clk 0:02:15]}  Nd7 {[%clk 0:02:16]} 12. Ne5 {[%clk 0:01:43]}  Nxe5 {[%clk 0:01:46]} 13. dxe5 {[%clk 0:01:42]}  dxe5 {[%clk 0:01:47]} 14. Bxh7+ {[%clk 0:01:36]}  Kxh7 {[%clk 0:01:48]} 15. Qxh5+ {[%clk 0:01:36]}  Kg8 {[%clk 0:01:49]} 16. Rad1 {[%clk 0:01:11]}  Qc7 {[%clk 0:01:44]} 17. Nf3 {[%clk 0:00:58]}  Bxf3 {[%clk 0:01:13]} 18. Qxf3 {[%clk 0:00:57]}  f5 {[%clk 0:01:09]} 19. Qh3 {[%clk 0:00:45]}  Rad8 {[%clk 0:01:02]} 20. Qh5 {[%clk 0:00:38]}  Qc4 {[%clk 0:00:44]} 21. Bg5 {[%clk 0:00:28]}  Bxg5 {[%clk 0:00:13]} 22. Qxg5 {[%clk 0:00:28]}  Rd5 {[%clk 0:00:13]} 23. Qe7 {[%clk 0:00:20]}  Qc6 {[%clk 0:00:13]} 24. b3 {[%clk 0:00:12]}  e4 {[%clk 0:00:13]} 25. c4 {[%clk 0:00:11]}  Rxd1 {[%clk 0:00:10]} 26. Rxd1 {[%clk 0:00:12]}  e3 {[%clk 0:00:04]} 27. fxe3 {[%clk 0:00:11]}  Qc5 {[%clk 0:00:04]} 28. Qxc5 {[%clk 0:00:10]}  bxc5 {[%clk 0:00:05]} 29. Rd6 {[%clk 0:00:10]}  Re8 {[%clk 0:00:05]} 30. Rc6 {[%clk 0:00:10]}  Kf7 {[%clk 0:00:05]} 31. Rxc5 {[%clk 0:00:09]}  Rd8 {[%clk 0:00:05]} 32. Rc7+ {[%clk 0:00:08]}  Kf6 {[%clk 0:00:06]} 33. Rxa7 {[%clk 0:00:08]}  Ke5 {[%clk 0:00:06]} 34. Rxg7 {[%clk 0:00:07]}  Ke4 {[%clk 0:00:06]} 35. Re7 {[%clk 0:00:06]}  e5 {[%clk 0:00:05]} 36. Kf2 {[%clk 0:00:03]}  Rd2+ {[%clk 0:00:06]} 37. Kg3 {[%clk 0:00:03]}  Rxa2 {[%clk 0:00:05]} 38. c5 {[%clk 0:00:03]}  Rb2 {[%clk 0:00:06]} 39. Rb7 {[%clk 0:00:02]}  Re2 {[%clk 0:00:06]} 40. c6 {[%clk 0:00:02]}  Rxe3+ {[%clk 0:00:06]} 41. Kf2 {[%clk 0:00:01]}  Rc3 {[%clk 0:00:06]} 42. c7 {[%clk 0:00:01]}  Rc2+ {[%clk 0:00:06]} 0-1


[Site "https://www.chess.com"]

[Event "Titled Tuesday Blitz April 18 Early 2023"]
[White "Rodchenkov, Sergey D."]
[Black "Ruge, Edison"]
[WhiteFideId "4168712"]
[BlackFideId "4401000"]
[WhiteElo "2277"]
[BlackElo "2175"]
[Result "1-0"]
[Round "03"]
[TimeControl "180+2"]
[Date "2023.04.18"]
[WhiteClock "0:00:30"]
[BlackClock "0:00:24"]

1. e4 {[%clk 0:03:00]}  e5 {[%clk 0:02:59]} 2. Nf3 {[%clk 0:03:01]}  Nc6 {[%clk 0:02:59]} 3. Bc4 {[%clk 0:03:01]}  Be7 {[%clk 0:02:58]} 4. O-O {[%clk 0:03:00]}  Nf6 {[%clk 0:02:58]} 5. d3 {[%clk 0:03:00]}  d6 {[%clk 0:02:58]} 6. Nc3 {[%clk 0:03:01]}  O-O {[%clk 0:02:58]} 7. a4 {[%clk 0:03:01]}  Kh8 {[%clk 0:02:59]} 8. a5 {[%clk 0:02:58]}  a6 {[%clk 0:02:57]} 9. Nd5 {[%clk 0:02:52]}  Nxd5 {[%clk 0:02:55]} 10. exd5 {[%clk 0:02:53]}  Nb8 {[%clk 0:02:55]} 11. b4 {[%clk 0:02:42]}  f5 {[%clk 0:02:52]} 12. Bb2 {[%clk 0:02:42]}  Qe8 {[%clk 0:02:45]} 13. Nd2 {[%clk 0:02:42]}  f4 {[%clk 0:02:31]} 14. Ne4 {[%clk 0:02:32]}  Qg6 {[%clk 0:02:26]} 15. Kh1 {[%clk 0:02:28]}  Nd7 {[%clk 0:02:19]} 16. f3 {[%clk 0:02:18]}  Nf6 {[%clk 0:02:14]} 17. Qe2 {[%clk 0:02:08]}  Nh5 {[%clk 0:02:13]} 18. d4 {[%clk 0:02:05]}  Bf6 {[%clk 0:01:57]} 19. dxe5 {[%clk 0:02:02]}  Bxe5 {[%clk 0:01:57]} 20. Bxe5 {[%clk 0:01:56]}  dxe5 {[%clk 0:01:53]} 21. Qf2 {[%clk 0:01:54]}  Bf5 {[%clk 0:01:48]} 22. Qh4 {[%clk 0:01:49]}  Nf6 {[%clk 0:01:37]} 23. Nxf6 {[%clk 0:01:41]}  Qxf6 {[%clk 0:01:32]} 24. Qxf6 {[%clk 0:01:40]}  gxf6 {[%clk 0:01:32]} 25. Bb3 {[%clk 0:01:36]}  Rfd8 {[%clk 0:01:22]} 26. Rad1 {[%clk 0:01:33]}  Kg7 {[%clk 0:01:18]} 27. c4 {[%clk 0:01:32]}  Kf8 {[%clk 0:01:08]} 28. c5 {[%clk 0:01:28]}  Ke7 {[%clk 0:01:01]} 29. g3 {[%clk 0:01:24]}  fxg3 {[%clk 0:00:58]} 30. hxg3 {[%clk 0:01:25]}  h5 {[%clk 0:00:57]} 31. Kg2 {[%clk 0:01:23]}  Rg8 {[%clk 0:00:53]} 32. d6+ {[%clk 0:01:23]}  cxd6 {[%clk 0:00:52]} 33. cxd6+ {[%clk 0:01:24]}  Kd7 {[%clk 0:00:52]} 34. Bxg8 {[%clk 0:01:23]}  Rxg8 {[%clk 0:00:52]} 35. Rh1 {[%clk 0:01:17]}  Bg6 {[%clk 0:00:46]} 36. Rc1 {[%clk 0:01:08]}  Kxd6 {[%clk 0:00:42]} 37. Rhd1+ {[%clk 0:01:09]}  Ke6 {[%clk 0:00:42]} 38. Rc7 {[%clk 0:01:08]}  Rb8 {[%clk 0:00:36]} 39. Rdd7 {[%clk 0:01:05]}  Kf5 {[%clk 0:00:35]} 40. Rg7 {[%clk 0:01:02]}  Rd8 {[%clk 0:00:33]} 41. Rxb7 {[%clk 0:00:51]}  Rd2+ {[%clk 0:00:32]} 42. Kh3 {[%clk 0:00:51]}  Rd3 {[%clk 0:00:33]} 43. b5 {[%clk 0:00:43]}  Rxf3 {[%clk 0:00:29]} 44. bxa6 {[%clk 0:00:34]}  Ra3 {[%clk 0:00:29]} 45. a7 {[%clk 0:00:33]}  Rxa5 {[%clk 0:00:27]} 46. Rb8 {[%clk 0:00:34]}  h4 {[%clk 0:00:24]} 47. a8=Q {[%clk 0:00:30]} 1-0


[Site "https://www.chess.com"]

[Event "Titled Tuesday Blitz April 18 Early 2023"]
[White "Larina, Maria"]
[Black "Jaskolka, Tomasz"]
[WhiteFideId "24113182"]
[BlackFideId "1170791"]
[WhiteElo "1848"]
[BlackElo "2155"]
[Result "0-1"]
[Round "03"]
[TimeControl "180+2"]
[Date "2023.04.18"]
[WhiteClock "0:00:01"]
[BlackClock "0:00:22"]

1. e4 {[%clk 0:03:00]}  c5 {[%clk 0:02:58]} 2. Nc3 {[%clk 0:02:57]}  Nc6 {[%clk 0:02:57]} 3. g3 {[%clk 0:02:56]}  e6 {[%clk 0:02:57]} 4. Bg2 {[%clk 0:02:54]}  a6 {[%clk 0:02:57]} 5. Nge2 {[%clk 0:02:46]}  Qc7 {[%clk 0:02:56]} 6. d4 {[%clk 0:02:41]}  cxd4 {[%clk 0:02:54]} 7. Nxd4 {[%clk 0:02:42]}  b5 {[%clk 0:02:37]} 8. O-O {[%clk 0:02:31]}  Bb7 {[%clk 0:02:36]} 9. Re1 {[%clk 0:01:53]}  Nf6 {[%clk 0:02:34]} 10. Nd5 {[%clk 0:01:48]}  Nxd5 {[%clk 0:02:15]} 11. exd5 {[%clk 0:01:47]}  Nxd4 {[%clk 0:02:15]} 12. Qxd4 {[%clk 0:01:44]}  O-O-O {[%clk 0:02:02]} 13. Bf4 {[%clk 0:01:09]}  Bd6 {[%clk 0:01:49]} 14. dxe6 {[%clk 0:00:57]}  dxe6 {[%clk 0:01:43]} 15. Bxb7+ {[%clk 0:00:51]}  Kxb7 {[%clk 0:01:41]} 16. Bxd6 {[%clk 0:00:34]}  Rxd6 {[%clk 0:01:41]} 17. Qxg7 {[%clk 0:00:29]}  Rhd8 {[%clk 0:01:41]} 18. a4 {[%clk 0:00:22]}  b4 {[%clk 0:01:32]} 19. c3 {[%clk 0:00:17]}  Rd2 {[%clk 0:01:33]} 20. cxb4 {[%clk 0:00:14]}  R8d7 {[%clk 0:01:28]} 21. b5 {[%clk 0:00:13]}  axb5 {[%clk 0:01:26]} 22. axb5 {[%clk 0:00:14]}  Qb6 {[%clk 0:01:26]} 23. Qf6 {[%clk 0:00:13]}  Qxb5 {[%clk 0:01:23]} 24. Qf3+ {[%clk 0:00:12]}  Qd5 {[%clk 0:01:10]} 25. Qe3 {[%clk 0:00:09]}  Qd4 {[%clk 0:01:04]} 26. Qb3+ {[%clk 0:00:06]}  Qb6 {[%clk 0:01:04]} 27. Qf3+ {[%clk 0:00:06]}  R2d5 {[%clk 0:00:51]} 28. Rec1 {[%clk 0:00:05]}  Kb8 {[%clk 0:00:41]} 29. b4 {[%clk 0:00:04]}  Qb7 {[%clk 0:00:30]} 30. Qe2 {[%clk 0:00:01]}  e5 {[%clk 0:00:24]} 31. Qe3 {[%clk 0:00:01]}  f6 {[%clk 0:00:22]} 32. h4 {[%clk 0:00:01]}  Rd3 {[%clk 0:00:22]} 0-1


[Site "https://www.chess.com"]